Cogmind - Beta 15 @@@ ROGUE MODE // 2025.06.28 @ 20:19:39 Player: CheifClapdad Result: Destroyed by B-86 Titan with Hardcell Cannon Performance ------------- Evolutions (7) 3500 Regions Visited (10) 2000 Robots Destroyed (45) 225 Value Destroyed (1352) 1352 Prototype IDs (3) 60 Alien Tech Used (0) 0 Bonus (0) 0 TOTAL SCORE: 7137 Bonus ------- None Cogmind --------- Core Integrity 0/1300 Matter 135/300 Energy 100/100 System Corruption 3% Temperature Cool (9) Movement Core (50) Location -3/Research Parts ------- > --- POWER (2) -------- (None) > --- PROPULSION (8) --- (None) > --- UTILITY (8) ------ (None) > --- WEAPON (3) ------- (None) > --- INVENTORY (5) ---- Large Matter Pod (150) Peak State ------------ > --- POWER ------------ Micro Antimatter Reactor > --- PROPULSION ------- Heavy Treads VTOL Module > --- UTILITY ---------- Advanced Power Amplifier Advanced Coolant Injector Advanced Transmission Jammer > --- WEAPON ----------- Heavy Machine Gun Heavy Machine Gun > --- INVENTORY -------- Large Matter Pod [Rating: 53] Favorites ----------- Power Light Ion Engine Engine Light Ion Engine Power Core Micro Fission Core Reactor Micro Antimatter Reactor Propulsion Wheel Treads Light Treads Wheel Wheel Hover Unit Improved Gravmag System Flight Unit VTOL Module Utility Small Storage Unit Device High-powered Tractor Beam Storage Small Storage Unit Processor Targeting Computer Protection Light Armor Plating Weapon Assault Rifle Energy Gun Advanced Beam Rifle Ballistic Gun Assault Rifle Launcher Improved Grenade Launcher Special Weapon Flamer Build | -11 -10 -10 -10 -8 -8 -8 -6 -5 -4 -3 ------- Run | Yrd Mat Min Sub Mat Sto Rec Fac Fac Fac Res Slots Evolved 14 | . . . . 4 . . 4 2 2 2 Power 1 | . . . . . . . . . 1 . Propulsion 6 | . . . . 2 . . 2 2 . . Utility 6 | . . . . 2 . . 2 . . 2 Weapon 1 | . . . . . . . . . 1 . Parts Attached 53 | 6 1 . 4 12 8 1 10 3 2 6 Power 8 | . 1 . 1 1 . . 2 1 . 2 Engine 3 | . 1 . 1 1 . . . . . . Core 3 | . . . . . . . 2 1 . . Reactor 2 | . . . . . . . . . . 2 Propulsion 21 | 2 . . 2 4 4 . 5 1 . 3 Treads 6 | 1 . . 1 1 2 . . 1 . . Leg . | . . . . . . . . . . . Wheel 7 | 1 . . 1 3 2 . . . . . Hover 1 | . . . . . . . 1 . . . Flight 7 | . . . . . . . 4 . . 3 Utility 10 | 2 . . . 4 . . 1 . 2 1 Device 6 | 1 . . . 1 . . 1 . 2 1 Storage 2 | 1 . . . 1 . . . . . . Processor 1 | . . . . 1 . . . . . . Hackware . | . . . . . . . . . . . Protection 1 | . . . . 1 . . . . . . Artifact . | . . . . . . . . . . . Weapon 14 | 2 . . 1 3 4 1 2 1 . . Energy Gun 1 | . . . . 1 . . . . . . Energy Cannon . | . . . . . . . . . . . Ballistic Gun 10 | 2 . . . 2 2 1 2 1 . . Ballistic Cannon . | . . . . . . . . . . . Launcher 2 | . . . . . 2 . . . . . Special Weapon 1 | . . . 1 . . . . . . . Impact Weapon . | . . . . . . . . . . . Slashing Weapon . | . . . . . . . . . . . Piercing Weapon . | . . . . . . . . . . . Special Melee Weapon . | . . . . . . . . . . . Unidentified Prototypes 3 | . . . . 1 1 . . . . 1 Parts Lost 34 | . . . 2 . 14 . . 2 1 15 Power 5 | . . . 1 . 1 . . . 1 2 Propulsion 16 | . . . . . 6 . . 1 . 9 Utility 6 | . . . 1 . 3 . . . . 2 Weapon 7 | . . . . . 4 . . 1 . 2 Highest Loss Streak 15 | . . . 2 . 11 . . 1 1 15 To Critical Strikes 1 | . . . . . 1 . . . . . Average Backups 6 | 1 2 3 5 8 14 4 4 4 4 2 Power . | . . . . . 1 1 1 . . . Propulsion 2 | 1 2 2 3 4 4 1 1 . 1 . Utility 1 | . . 1 2 2 1 1 1 1 1 1 Weapon 2 | . . . . 1 6 1 1 2 2 . Tool/Special . | . . . . . . . . . . . Unused Backups 8 | . . . . . 5 . . 2 . 1 Power 2 | . . . . . . . . 2 . . Propulsion 1 | . . . . . 1 . . . . . Utility 2 | . . . . . 1 . . . . 1 Weapon 3 | . . . . . 3 . . . . . Tool/Special . | . . . . . . . . . . . Average Slot Usage (%) 57 | . 100 100 91 74 81 5 26 35 31 18 Engine 5 | . 14 14 13 9 7 . . . . . Core 1 | . . . . . . . 4 5 5 . Treads 6 | . 14 14 8 10 13 . . . . . Wheel 11 | . 14 14 19 22 13 5 4 . . . Hover 1 | . . . . . . . 5 5 5 1 Flight 3 | . . . . . . . 5 18 15 5 Device 4 | . 14 14 7 3 6 . 1 . 5 5 Storage 6 | . 14 14 14 9 8 . . . . . Processor 1 | . . . . . 8 . . . . . Protection 1 | . . . . 1 4 . . . . . Energy Gun 1 | . . . . 1 7 . . . . . Ballistic Gun 11 | . 28 28 27 16 9 . 2 3 . . Peak Build Rating 53 | 6 7 7 9 24 26 6 27 39 36 53 Average Rating 16 | 4 7 7 7 17 21 2 16 25 30 23 On Entrance 12 | . 6 7 7 8 24 1 3 25 22 30 Naked Turns 95 | . . . . . 18 40 . . . 37 Heaviest Build 37 | 10 13 13 14 37 33 . 16 12 7 18 Greatest Support 70 | 20 20 20 40 60 42 3 18 18 14 70 Greatest Overweight (x) 3 | . . . . 1 1 . 3 . . 2 Average Overweight (x) . | . . . . . . . . . . . Largest Inventory Capacity 15 | 8 8 8 8 15 15 5 5 5 5 5 Average Capacity 8 | 6 8 8 8 10 14 5 5 5 5 5 Most Carried 15 | 3 2 4 8 15 15 5 5 5 5 5 Average Carried 6 | 1 2 3 5 8 14 4 4 4 5 2 Final Capacity 15 | 8 8 8 8 15 5 5 5 5 5 5 Final Carried 15 | 3 2 4 8 15 5 4 5 5 5 1 Class Distribution -------------------- 76% | Mutant 18% | Sprinter 4% | Scavenger-Mutant Dominant Class ---------------- Mutant | -10/Mines Mutant | -10/Subcaves Mutant | -8/Materials Mutant | -8/Storage Mutant | -8/Recycling Mutant | -6/Factory Sprinter | -5/Factory Sprinter | -4/Factory Mutant | -3/Research Resources | -11 -10 -10 -10 -8 -8 -8 -6 -5 -4 -3 ----------- Run | Yrd Mat Min Sub Mat Sto Rec Fac Fac Fac Res Matter Collected 1254 | 272 . 20 94 407 210 191 48 . . 12 Remotely 561 | 98 . . 32 256 175 . . . . . Salvage Created 1396 | 62 . . 65 305 868 . 96 . . . Parts 84 | 4 . . 8 20 43 . 9 . . . Haulers Intercepted 4 | . . . . 2 2 . . . . . Recyclers Shooed 5 | . . . . . 1 . 4 . . . Parts Field Recycled . | . . . . . . . . . . . Retrieved Matter . | . . . . . . . . . . . Parts Self-Destructed 9 | . . . 9 . . . . . . . Prevented . | . . . . . . . . . . . Kills | -11 -10 -10 -10 -8 -8 -8 -6 -5 -4 -3 ------- Run | Yrd Mat Min Sub Mat Sto Rec Fac Fac Fac Res Combat Hostiles Destroyed 32 | . . . 2 9 17 . 4 . . . Guns 26 | . . . 2 9 11 . 4 . . . AOE 6 | . . . . . 6 . . . . . Classes Destroyed 11 | 1 . . 1 6 3 . . . . . Worker 2 | . . . . 1 1 . . . . . Builder 2 | . . . . . 2 . . . . . Hauler 4 | . . . . 2 2 . . . . . Recycler 3 | 1 . . . . 2 . . . . . Mechanic 1 | . . . . . 1 . . . . . Watcher 1 | . . . . . 1 . . . . . Swarmer 8 | . . . . 4 . . 4 . . . Grunt 16 | . . . . 3 13 . . . . . Sentry 5 | . . . . 1 4 . . . . . Heavy 1 | . . . . 1 . . . . . . Subdweller 2 | . . . 2 . . . . . . . Best Kill Streak 17 | 1 . . 2 4 17 . 4 . . . Combat Bots Only 10 | . . . 2 4 10 . 4 . . . Max Kills in Single Turn 5 | 1 . . 1 1 5 . 2 . . . Gunslinging 1 | . . . . . . . 1 . . . Exploded 3 | . . . . . 3 . . . . . Melee . | . . . . . . . . . . . Uniques/NPCs Destroyed . | . . . . . . . . . . . Combat | -11 -10 -10 -10 -8 -8 -8 -6 -5 -4 -3 -------- Run | Yrd Mat Min Sub Mat Sto Rec Fac Fac Fac Res Hostile Shots Fired 400 | . . . 25 58 117 . 17 33 5 145 Missed 132 | . . . 8 22 27 . 5 22 2 46 Hits 268 | . . . 17 36 90 . 12 11 3 99 Projectile 268 | . . . 17 36 90 . 12 11 3 99 AOE 1 | . . . . . . . . 1 . . Critical Strikes 16 | . . . 1 1 9 . . 1 1 3 Damage Taken 5489 | . . . 432 683 1619 . 173 227 70 2285 Core 1998 | . . . 87 176 295 . 42 30 58 1310 Absorbed by Shields . | . . . . . . . . . . . Core Remaining (%) 77 | 100 . . 65 . . 14 95 97 94 . Volleys Fired 105 | 2 . . 10 31 43 1 7 . . 11 Largest 2 | 2 . . 2 2 2 1 2 . . 2 Hottest 120 | 40 . . 120 89 89 28 60 . . 80 Shots Fired 194 | 4 . . 20 62 78 1 10 . . 19 Gun 185 | 4 . . 18 62 71 1 10 . . 19 Cannon . | . . . . . . . . . . . Launcher 7 | . . . . . 7 . . . . . Special 2 | . . . 2 . . . . . . . Kinetic 149 | 4 . . 18 60 47 1 10 . . 9 Thermal 38 | . . . 2 2 24 . . . . 10 Explosive 7 | . . . . . 7 . . . . . Electromagnetic . | . . . . . . . . . . . Robot Hit Streak 9 | 3 . . 8 9 9 . 6 . . 2 Robot Miss Streak 5 | . . . 1 5 5 . 2 . . 3 Penetration Max . | . . . . . . . . . . . Secondary Targets 3 | . . . . 1 . . 2 . . . Max Gunslinging Chain 1 | . . . . 1 . . 1 . . . Shots Hit Robots 144 | 3 . . 10 51 63 . 7 . . 10 Core Hits 148 | 2 . . 4 45 90 . 5 . . 2 Critical Kills . | . . . . . . . . . . . Critical Parts Destroyed . | . . . . . . . . . . . Critical Strikes 1 | . . . . . 1 . . . . . Burn 1 | . . . . . 1 . . . . . Melee Attacks . | . . . . . . . . . . . Impact . | . . . . . . . . . . . Slashing . | . . . . . . . . . . . Piercing . | . . . . . . . . . . . Sneak Attacks . | . . . . . . . . . . . Combat Hostiles . | . . . . . . . . . . . Follow-up Attacks . | . . . . . . . . . . . Damage Inflicted 3714 | 36 . . 146 879 2216 . 178 . . 259 Guns 2584 | 36 . . 146 867 1122 . 178 . . 235 Cannons . | . . . . . . . . . . . Explosions 1094 | . . . . . 1094 . . . . . Melee . | . . . . . . . . . . . Ramming 36 | . . . . 12 . . . . . 24 Kinetic 2206 | 36 . . 146 847 842 . 178 . . 157 Thermal 378 | . . . . 20 280 . . . . 78 Explosive 1094 | . . . . . 1094 . . . . . Electromagnetic . | . . . . . . . . . . . Impact . | . . . . . . . . . . . Slashing . | . . . . . . . . . . . Piercing . | . . . . . . . . . . . Highest Corruption 3 | . . . . . . . . 1 . 3 Average Corruption 2 | . . . . . . . . 1 . 3 Corruption Purged . | . . . . . . . . . . . Corruption Blocked . | . . . . . . . . . . . Effects 3 | . . . . . . . . . . 3 Matter Fused 1 | . . . . . . . . . . 1 Heat Flow Errors 1 | . . . . . . . . . . 1 Weapon Failures 1 | . . . . . . . . . . 1 Overload Shots . | . . . . . . . . . . . Overflow Damage 78 | . . . . . 78 . . . . . Projectiles . | . . . . . . . . . . . Explosions 78 | . . . . . 78 . . . . . Melee . | . . . . . . . . . . . Knockbacks . | . . . . . . . . . . . Impact . | . . . . . . . . . . . Kinetic . | . . . . . . . . . . . Secondary . | . . . . . . . . . . . Self-Inflicted Damage 145 | . . . . 5 128 . . . . 12 Shots 4 | . . . . . 4 . . . . . Rammed 7 | . . . . 2 . . . . . 5 Targets Rammed 7 | . . . . 2 . . . . . 5 Kicked . | . . . . . . . . . . . Crushed . | . . . . . . . . . . . Highest Temperature 247 | . . . 247 36 234 . . . . 179 Average Temperature 55 | . . . 130 17 52 . . . . 67 Received Heat Transfer 1558 | . . . 333 108 864 . . 30 . 223 Effects 1 | . . . . . 1 . . . . . Interference 1 | . . . . . 1 . . . . . Siege Activations . | . . . . . . . . . . . Martial Activations . | . . . . . . . . . . . Shielding Activations . | . . . . . . . . . . . Robots Disrupted . | . . . . . . . . . . . Combat Hostiles . | . . . . . . . . . . . Robots Corrupted . | . . . . . . . . . . . Combat Hostiles . | . . . . . . . . . . . Parts Fried . | . . . . . . . . . . . Impact Corruptions . | . . . . . . . . . . . Robots Melted . | . . . . . . . . . . . Combat Hostiles . | . . . . . . . . . . . Parts Melted . | . . . . . . . . . . . Heat Transferred 851 | . . . . 37 592 . . . . 222 Parts Sabotaged . | . . . . . . . . . . . Parts Stolen . | . . . . . . . . . . . Parts Stripped . | . . . . . . . . . . . Power Chain Reactions . | . . . . . . . . . . . Alert | -11 -10 -10 -10 -8 -8 -8 -6 -5 -4 -3 ------- Run | Yrd Mat Min Sub Mat Sto Rec Fac Fac Fac Res Maximum Alert Level 1 | . . . . . 1 . . . . . Low Security (%) 97 | 100 100 100 . 100 88 100 100 100 100 100 Level 1 2 | . . . . . 11 . . . . . Level 2 . | . . . . . . . . . . . Level 3 . | . . . . . . . . . . . Level 4 . | . . . . . . . . . . . Level 5 . | . . . . . . . . . . . High Security . | . . . . . . . . . . . Max Security . | . . . . . . . . . . . Peak Influence 297 | 5 . . . 125 297 103 90 115 56 45 Initial 103 | . . . . . 37 103 17 41 56 . Average 46 | . . . . 66 87 73 26 44 20 1 Influence Increases 1172 | 5 . . . 239 550 . 165 150 . 63 Destroy 0b10 Robot/C 600 | . . . . 180 340 . 80 . . . Destroy 0b10 Robot/NC 65 | 5 . . . 15 45 . . . . . Destroy Leader 120 | . . . . 44 66 . 10 . . . Successful Hack 16 | . . . . . . . . . . 16 Disable Machine 15 | . . . . . 15 . . . . . Destroy Structure 56 | . . . . . 54 . . . . 2 Partial Spotted 45 | . . . . . 15 . 15 15 . . Lose Combat Pursuer 255 | . . . . . 15 . 60 135 . 45 Influence Decreases 1172 | 5 . . . 150 372 224 123 120 115 63 Entered New Map 345 | . . . . . 52 164 26 44 59 . Time Decay 612 | 5 . . . 150 180 60 97 56 56 8 Lost Part 215 | . . . . . 140 . . 20 . 55 Squads Dispatched 8 | . . . . 2 4 . . . . 2 Investigation 1 | . . . . . . . . . . 1 Extermination . | . . . . . . . . . . . Reinforcement 7 | . . . . 2 4 . . . . 1 Assault . | . . . . . . . . . . . Garrison . | . . . . . . . . . . . Intercept . | . . . . . . . . . . . Searches Triggered . | . . . . . . . . . . . Construction Impeded 3 | . . . . . 2 . . . . 1 Haulers Reinforced . | . . . . . . . . . . . Active Scanning Responses . | . . . . . . . . . . . Cargo Convoy Interrupts . | . . . . . . . . . . . Stealth | -11 -10 -10 -10 -8 -8 -8 -6 -5 -4 -3 --------- Run | Yrd Mat Min Sub Mat Sto Rec Fac Fac Fac Res Distress Signals 2 | . . . . . . 1 . 1 . . Communications Jammed . | . . . . . . . . . . . Distress Signals . | . . . . . . . . . . . Times Spotted 79 | . . . 3 8 30 1 9 14 1 13 Peak Tracking Total 10 | . . . 2 3 9 1 4 6 1 10 Tactical Retreats 6 | . . . . . 1 . 1 3 . 1 Traps | -11 -10 -10 -10 -8 -8 -8 -6 -5 -4 -3 ------- Run | Yrd Mat Min Sub Mat Sto Rec Fac Fac Fac Res Traps Triggered 4 | . . . . . 3 . . . . 1 Indirectly . | . . . . . . . . . . . Trap Hack Attempts . | . . . . . . . . . . . Triggered . | . . . . . . . . . . . Disarmed . | . . . . . . . . . . . Reprogrammed . | . . . . . . . . . . . Reused . | . . . . . . . . . . . Traps Extracted . | . . . . . . . . . . . Installed . | . . . . . . . . . . . Triggered . | . . . . . . . . . . . Machines | -11 -10 -10 -10 -8 -8 -8 -6 -5 -4 -3 ---------- Run | Yrd Mat Min Sub Mat Sto Rec Fac Fac Fac Res Machines Disabled 1 | . . . . . 1 . . . . . Max in Single Turn 1 | . . . . . 1 . . . . . Machines Repaired . | . . . . . . . . . . . Machines Dismantled . | . . . . . . . . . . . Machines Sabotaged . | . . . . . . . . . . . Overloaded Fab Kills . | . . . . . . . . . . . Hacking | -11 -10 -10 -10 -8 -8 -8 -6 -5 -4 -3 --------- Run | Yrd Mat Min Sub Mat Sto Rec Fac Fac Fac Res Machines Accessed 3 | . . . 1 . . . 1 . . 1 Terminals . | . . . . . . . . . . . Fabricators . | . . . . . . . . . . . Repair Stations 1 | . . . . . . . . . . 1 Recycling Units 1 | . . . . . . . 1 . . . Scanalyzers . | . . . . . . . . . . . Garrison Access . | . . . . . . . . . . . Total Hacks 7 | . . . 3 . . . 2 . . 2 Successful 5 | . . . 3 . . . 1 . . 1 Failed 2 | . . . . . . . 1 . . 1 Catastrophic 1 | . . . . . . . . . . 1 Database Lockouts . | . . . . . . . . . . . Manual 1 | . . . . . 1 . . . . . Terminals . | . . . . . . . . . . . Fabricators . | . . . . . . . . . . . Repair Stations 2 | . . . . . . . . . . 2 Recycling Units 2 | . . . . . . . 2 . . . Scanalyzers . | . . . . . . . . . . . Garrison Access . | . . . . . . . . . . . Terminal Hacks 3 | . . . 3 . . . . . . . Record 3 | . . . 3 . . . . . . . Fabricator Hacks . | . . . . . . . . . . . Repair Station Hacks 1 | . . . . . . . . . . 1 Refit 1 | . . . . . . . . . . 1 Recycling Unit Hacks 1 | . . . . . . . 1 . . . Retrieve Components 1 | . . . . . . . 1 . . . Scanalyzer . | . . . . . . . . . . . Garrison Access Hacks . | . . . . . . . . . . . Unauthorized Hacks . | . . . . . . . . . . . Terminals . | . . . . . . . . . . . Fabricators . | . . . . . . . . . . . Repair Stations . | . . . . . . . . . . . Recycling Units . | . . . . . . . . . . . Scanalyzers . | . . . . . . . . . . . Garrison Access . | . . . . . . . . . . . Data Cores Recovered . | . . . . . . . . . . . Used . | . . . . . . . . . . . Hacking Detections 2 | . . . . . . . 1 . . 1 Full Trace Events 1 | . . . . . . . . . . 1 Feedback Events . | . . . . . . . . . . . Feedback Blocked . | . . . . . . . . . . . Robot Schematics Acquired . | . . . . . . . . . . . Robots Built . | . . . . . . . . . . . Authchips . | . . . . . . . . . . . Time . | . . . . . . . . . . . Total Robot Build Rating . | . . . . . . . . . . . Part Schematics Acquired . | . . . . . . . . . . . Parts Built . | . . . . . . . . . . . Authchips . | . . . . . . . . . . . Time . | . . . . . . . . . . . Total Part Build Rating . | . . . . . . . . . . . Parts Repaired . | . . . . . . . . . . . Time . | . . . . . . . . . . . Parts Recycled . | . . . . . . . . . . . Recycled Matter . | . . . . . . . . . . . Retrieved Matter . | . . . . . . . . . . . Retrieved Components 4 | . . . . . . . 4 . . . Parts Scanalyzed . | . . . . . . . . . . . Part Schematics Acquired . | . . . . . . . . . . . Parts Damaged . | . . . . . . . . . . . Bothacking | -11 -10 -10 -10 -8 -8 -8 -6 -5 -4 -3 ------------ Run | Yrd Mat Min Sub Mat Sto Rec Fac Fac Fac Res Used RIF Installer . | . . . . . . . . . . . Robots Hacked . | . . . . . . . . . . . Non-combat . | . . . . . . . . . . . Combat . | . . . . . . . . . . . Robot Hacks Applied . | . . . . . . . . . . . Relay Couplers Released . | . . . . . . . . . . . Fabnet Peak Effective % . | . . . . . . . . . . . Robots Rewired . | . . . . . . . . . . . Allies Hacked . | . . . . . . . . . . . Hacks Repelled . | . . . . . . . . . . . Allies | -11 -10 -10 -10 -8 -8 -8 -6 -5 -4 -3 -------- Run | Yrd Mat Min Sub Mat Sto Rec Fac Fac Fac Res Total Allies . | . . . . . . . . . . . Largest Group . | . . . . . . . . . . . Highest-Rated Group . | . . . . . . . . . . . Highest-Rated Ally . | . . . . . . . . . . . Total Orders 1 | . . . . . . . 1 . . . EXPLORE 1 | . . . . . . . 1 . . . Ally Attacks . | . . . . . . . . . . . Total Damage . | . . . . . . . . . . . Kills . | . . . . . . . . . . . Allies Corrupted . | . . . . . . . . . . . Allies Melted . | . . . . . . . . . . . Intel | -11 -10 -10 -10 -8 -8 -8 -6 -5 -4 -3 ------- Run | Yrd Mat Min Sub Mat Sto Rec Fac Fac Fac Res Active Infowar (turns) 187 | . . . . . . . . . 174 13 Jamming 187 | . . . . . . . . . 174 13 Robot Analysis Total . | . . . . . . . . . . . Derelict Logs Recovered . | . . . . . . . . . . . Drone Launches 2 | . . . . . . . 2 . . . Drone Recoveries 1 | . . . . . . . 1 . . . Exploration | -11 -10 -10 -10 -8 -8 -8 -6 -5 -4 -3 ------------- Run | Yrd Mat Min Sub Mat Sto Rec Fac Fac Fac Res Turns Passed 2244 | 95 13 50 409 366 370 135 350 127 180 149 Spaces Moved 2713 | 59 8 31 337 200 166 260 612 388 444 208 Core 434 | 2 . . . . 38 260 54 . . 80 Treads 252 | 40 8 31 117 5 42 . . . . 9 Legs . | . . . . . . . . . . . Wheels 518 | 17 . . 220 195 86 . . . . . Hover 269 | . . . . . . . 268 . . 1 Flight 1240 | . . . . . . . 290 388 444 118 Fastest Speed 27 | 50 160 160 80 80 50 50 27 27 30 30 Average Speed 62 | 133 160 160 107 101 123 50 51 30 30 46 Slowest Speed 275 | 160 160 160 160 165 225 50 275 70 30 205 Overloaded Moves . | . . . . . . . . . . . Propulsion Burnouts . | . . . . . . . . . . . Robots Hopped 26 | . . . . . . . 15 6 2 3 Potential Cave-ins . | . . . . . . . . . . . Cave-ins Triggered . | . . . . . . . . . . . Exploration Rate (%) 16 | 5 3 7 21 17 48 42 10 7 6 10 Regions Visited 10 Branch Regions 4 Pre-discovered Areas 1 | . . . 1 . . . . . . . Known Exits Taken . | . . . . . . . . . . . Unknown Exits Taken 10 | 1 1 1 1 1 1 1 1 1 1 . Scrap Searched . | . . . . . . . . . . . Spaces Dug . | . . . . . . . . . . . Terrain Destroyed 51 | . . . . . 51 . . . . . Melee . | . . . . . . . . . . . Projectile 1 | . . . . . 1 . . . . . AOE 50 | . . . . . 50 . . . . . Terrain Rammed . | . . . . . . . . . . . Walls Destroyed . | . . . . . . . . . . . Machines Disabled . | . . . . . . . . . . . Actions | -11 -10 -10 -10 -8 -8 -8 -6 -5 -4 -3 --------- Run | Yrd Mat Min Sub Mat Sto Rec Fac Fac Fac Res Total 3022 | 69 8 32 358 304 251 263 623 392 487 235 Wait 101 | . . . . 40 14 . . . 43 4 Move 2655 | 58 7 30 336 199 165 259 583 375 440 203 Hop 23 | . . . . . . . 13 6 2 2 Pick Up 27 | 3 . 2 5 11 1 . 3 2 . . Fast Attach 32 | 6 . . 1 6 2 . 8 1 2 6 Attach 17 | . 1 . 1 2 4 2 3 1 . 3 Detach 5 | . . . . . . 1 2 2 . . Swap 14 | . . . 4 5 4 . . 1 . . Drop 20 | . . . 1 8 2 . 4 4 . 1 Fire 105 | 2 . . 10 31 43 1 7 . . 11 Melee . | . . . . . . . . . . . Ram 7 | . . . . 2 . . . . . 5 Kick . | . . . . . . . . . . . Crush . | . . . . . . . . . . . Escape Stasis 16 | . . . . . 16 . . . . . Rewire . | . . . . . . . . . . . Trap . | . . . . . . . . . . . Miscellaneous . | . . . . . . . . . . . Route ------- -11/Scrapyard -10/Materials -10/Mines -10/Subcaves -8/Materials -8/Storage -8/Recycling -6/Factory -5/Factory -4/Factory -3/Research History --------- Turn | Location | Event 11 | -11/Scrapyard | Discovered new exit (range 16) 96 | -11/Scrapyard | Entered Materials 97 | -10/Materials | Discovered new exit (range 7) 109 | -10/Materials | Entered Mines 115 | -10/Mines | Met a Derelict bent on vengeance 143 | -10/Mines | Discovered new exit (range 8) 159 | -10/Mines | Entered Subcaves 160 | -10/Subcaves | Approached by a straggling Scientist 307 | -10/Subcaves | Build established: Mutant 314 | -10/Subcaves | Shifting Twisted Machinery released Flamer 322 | -10/Subcaves | Shifting Twisted Machinery released Sub. Machine Gun 387 | -10/Subcaves | Visited Clippyterm 390 | -10/Subcaves | Learned location of Deep Caves (-7) 554 | -10/Subcaves | Discovered new exit (range 13) 568 | -10/Subcaves | Entered Materials 568 | -8/Materials | Evolved 4 slots: Propulsion x2, Utility x2 808 | -8/Materials | Discovered new exit (range 16) 934 | -8/Materials | Entered Storage 1162 | -8/Storage | Lost 3 parts (2n1u) 1256 | -8/Storage | Core integrity fell below 50% 1285 | -8/Storage | Destroyed 10 combat bots 1286 | -8/Storage | Released all parts (2) 1287 | -8/Storage | Core integrity fell below 20% 1303 | -8/Storage | Used back door to open Recycling access 1303 | -8/Storage | Discovered new exit (range 4) 1304 | -8/Storage | Entered Recycling 1314 | -8/Recycling | Lost 11 parts (1p4n2u4w) 1431 | -8/Recycling | Discovered new exit (range 16) 1439 | -8/Recycling | Entered Factory 1439 | -6/Factory | Evolved 4 slots: Propulsion x2, Utility x2 1787 | -6/Factory | Discovered new exit (range 5) 1789 | -6/Factory | Entered another Factory area 1789 | -5/Factory | Evolved 2 slots: Propulsion x2 1912 | -5/Factory | Discovered new exit (range 7) 1916 | -5/Factory | Entered another Factory area 1916 | -4/Factory | Evolved 2 slots: Power x1, Weapon x1 2000 | -4/Factory | Build established: Sprinter 2077 | -4/Factory | Discovered new exit (range 15) 2096 | -4/Factory | Entered Research 2096 | -3/Research | Evolved 2 slots: Utility x2 2167 | -3/Research | Released all parts (7) 2205 | -3/Research | Core integrity fell below 50% 2240 | -3/Research | Core integrity fell below 20% 2241 | -3/Research | Spotted B-86 Titan 2245 | -3/Research | Destroyed by B-86 Titan with Hardcell Cannon Last Messages --------------- 02225_ Backup Propulsion III destroyed. 02226_ System corrupted: Heat flow error (+204). 02228_ Backup Plating III destroyed. 02228_ Slammed into S-43 Plague. 02228_ Destabilizing: System interference. 02228_ Backup Laser III temporarily disabled. 02229_ Slammed into S-43 Plague. 02237_ Backup Laser III destroyed. 02239_ C-30 ARC bursts open, deploying its payload. 02239_ H-77 Assassin unfolds itself. 02239_ Penetrated by Slug. 02239_ Slug penetrates K-01 Serf. 02239_ K-01 Serf destroyed. 02241_ Acquired 12 matter. 02241_ M-28 Smith repairs S-43 Plague. 02242_ K-01 Serf collects debris. 02242_ Slug penetrates Wall. 02244_ Penetrated by Slug. 02244_ Slug penetrates Field Manipulator. Map ----- +----------------------------------------------------+ | ?????????????????????????????????????????????????? | | ?????????????????????????????????????????????????? | | ?????????????????????????????????????????????????? | | ?????????????????????????????????????????????????? | | ?????????????????????????????????????????????????? | | ?????????????????????????????????????????????????? | | ?????????????????????????????????????????????????? | | ?????????????????????????????????????????????????? | | ?????????????????????????????????????????????????? | | ?????????????????????????????????????????????????? | | ?????????????????????????????????????????????????? | | ?????????????????????????????????????????????????? | | ????????????????????????????? #????????????????? | | ????????????????????????????? # ??????????????? | | ????????????????????????????? # ???????????????? | | ???????????????????????????? R????????????????? | | ???????????????????????????? #????????????????? | | ???????????????????????????? #????????????????? | | ????????????????????###+####k #????????????????? | | ????????????????????# h% #????????????????? | | ????????????????????# #????????????????? | | ????????????????????# h #????????????????? | | ????????????????????# A #????????????????? | | ????????????????????# #????????????????? | | ??????????########### R k# ## #??????????? | | ??????????# # @ BB #??????????? | | ??????????# # BB #??????????? | | ??????????# #= % #??????????? | | ??????????# # R """ """ +??????????? | | ??????????# [ ;* """" """"? #??????????? | | ??????????# w# """" """???????????????? | | ??????????# # """ """ ?????????????? | | ??????????# # s ????????????? | | ??????????###########s ????????????? | | ????????????????????# u ????????????? | | ????????????????????# """ """ ???????????? | | ???????????########## """" """" ????????????? | | ???????????# # """" """?? ????????????? | | ???????????# # """ """ ?????????????? | | ???????????# """# ????????????? | | ???????????# """# ????????????? | | ???????????# %R"# ????????????? | | ???????????# * """# """ """ ????????????? | | ???????????# / """" ""????????????????? | | ???????????# # """" ""????????????????? | | ???????????# # """ "????????????????? | | +#+#############+#### ???????????????? | | ??????????????? | | ???????????????? | | ????????????????? | +----------------------------------------------------+ Best States ------------- Heat Dissipation 46 Coolant Potential 100 Energy Generation 25 Energy Capacity 340 Matter Stores 300 Matter Capacity 300 Sight Range 16 Terrain Scan Density 10 Jamming Range 16 Power Amplification 30 Armor Coverage 160 Evasion (%) 64 Targeting Accuracy 5 Recoil Reduction 2 Item Schematics ----------------- None Robot Schematics ------------------ None Fabricated ------------ Nothing Repaired ---------- Nothing Alien Tech Used ----------------- None Achievements -------------- None Challenges ------------ None Game ------ Seed GravityIonicMallet Manual? 0 Play Time 00:28:05 Cumulative 97.5 hours Start 2025.06.28 @ 19:49:13 End 2025.06.28 @ 20:19:39 Sessions 1 Manual Loads 0 Difficulty Rogue Special Mode None Game No. 133 Rogue 133 Adventurer 0 Explorer 0 Win Type - Total 1 Types 1/0/0/0/0/0/0/0/0/0 Lore% 39 Gallery% 50 Achievement% 43 Wizard Run 0 Options --------- Layout 1 ASCII 0 Keyboard 0 Movement Arrows Keybinds 0 Fullscreen 1 Font 24/Smallcaps Map View 50x35 Zoom Use 0% Tactical HUD 1 Map Filters NONE Filters NONE Steam X RUN: 3e1356af-946b-420a-9050-a3caf53c2182